fUSD/lending_fUSD_20240501
["ID","MTS","AMOUNT","RATE_DAILY","PERIOD"]
[325208542,1714588232818,-808.0,0.00015499,2]
[325208543,1714588232831,-610.0,0.00015499,2]
[325208544,1714588232845,-437.0,0.00015499,2]
[325208545,1714588232858,-150.0,0.00015499,2]
[325208546,1714588232871,-1476.0,0.00015499,2]
[325208547,1714588232884,-421.0,0.00015499,2]
[325208548,1714588232897,-3133.0,0.00015499,2]
[325208549,1714588232910,-2448.0,0.00015499,2]
[325208550,1714588232923,-150.0,0.00015499,2]
[325208551,1714588232936,-215.0,0.00015499,2]
[325208552,1714588232949,-444.0,0.00015499,2]
[325208553,1714588232962,-1643.0,0.00015499,2]
[325208554,1714588232975,-1139.0,0.00015499,2]
[325208555,1714588232988,-1057.0,0.00015499,2]
[325208556,1714588233002,-5737.0,0.00015499,2]
[325208557,1714588233016,-5899.0,0.00015499,2]
[325208558,1714588233031,-37744.0,0.00015499,2]
[325208559,1714588233045,-970.0,0.00015499,2]
[325208560,1714588233059,-2298.0,0.00015499,2]
[325208561,1714588233072,-1395.0,0.00015499,2]
[325208562,1714588233085,-462.0,0.00015499,2]
[325208563,1714588233099,-155.0,0.0001554,2]
[325208564,1714588233112,-200.0,0.00015541,2]
[325208565,1714588233125,-3166.58475447,0.00015673,2]
[325208566,1714588233139,-953.54434481,0.00015673,2]
[325208567,1714588233153,-10000.0,0.0001578,2]
[325208568,1714588233167,-191.02,0.00015844,2]
[325208569,1714588233181,-1245.03725456,0.00015878,2]
[325208570,1714588233194,-216.42941215,0.00015879,2]
[325208571,1714588233209,-9025.99654807,0.0001588,2]
[325208572,1714588233223,-210.92544217,0.0001588,2]
[325208573,1714588233237,-180.03393875,0.0001588,2]
[325208574,1714588233251,-2000.0,0.0001588,2]
[325208575,1714588233263,-178.37657954,0.0001588,2]
[325208576,1714588233277,-214.9866141,0.0001588,2]
[325208577,1714588233291,-181.47,0.00015941,2]
[325208578,1714588233305,-3078.68,0.0001611,15]
[325208579,1714588233318,-300.0,0.00016438,2]
[325208580,1714588233332,-155.00408411,0.00016453,2]
[325208581,1714588233346,-1224.55602433,0.000165,2]
[325208582,1714588233359,-500.0,0.000165,2]
[325208583,1714588233372,-500.0,0.000165,2]
[325208584,1714588233386,-500.0,0.000165,2]
[325208585,1714588233399,-500.0,0.000165,2]
[325208586,1714588233413,-500.0,0.000165,2]
[325208587,1714588233426,-500.0,0.000165,2]
[325208588,1714588233439,-500.0,0.000165,2]
[325208589,1714588233453,-500.0,0.000165,2]
[325208590,1714588233466,-500.0,0.000165,2]
[325208591,1714588233479,-500.0,0.000165,2]
[325208592,1714588233493,-500.0,0.000165,2]
[325208593,1714588233506,-500.0,0.000165,2]
[325208594,1714588233521,-500.0,0.000165,2]
[325208595,1714588233537,-500.0,0.000165,2]
[325208596,1714588233549,-500.0,0.000165,2]
[325208597,1714588233563,-500.0,0.000165,2]
[325208598,1714588233577,-500.0,0.000165,2]
[325208599,1714588233590,-500.0,0.000165,2]
[325208600,1714588233603,-500.0,0.000165,2]
[325208601,1714588233617,-500.0,0.000165,2]
[325208602,1714588233630,-500.0,0.000165,2]
[325208603,1714588233643,-500.0,0.000165,2]
[325208604,1714588233656,-500.0,0.000165,2]
[325208605,1714588233670,-500.0,0.000165,2]
[325208606,1714588233685,-500.0,0.000165,2]
[325208607,1714588233699,-500.0,0.000165,2]
[325208608,1714588233713,-500.0,0.000165,2]
[325208609,1714588233727,-500.0,0.000165,2]
[325208610,1714588233740,-500.0,0.000165,2]
[325208611,1714588233753,-500.0,0.000165,2]
[325208612,1714588233767,-500.0,0.000165,2]
[325208613,1714588233782,-500.0,0.000165,2]
[325208614,1714588233796,-500.0,0.000165,2]
[325208615,1714588233809,-500.0,0.000165,2]
[325208616,1714588233822,-500.0,0.000165,2]
[325208617,1714588233835,-500.0,0.000165,2]
[325208618,1714588233848,-500.0,0.000165,2]
[325208619,1714588233862,-500.0,0.000165,2]
[325208620,1714588233876,-500.0,0.000165,2]
[325208621,1714588233889,-500.0,0.000165,2]
[325208622,1714588233902,-500.0,0.000165,2]
[325208623,1714588233915,-500.0,0.000165,2]
[325208624,1714588233929,-500.0,0.000165,2]
[325208625,1714588233942,-500.0,0.000165,2]
[325208626,1714588233954,-500.0,0.000165,2]
[325208627,1714588233967,-500.0,0.000165,2]
[325208628,1714588233980,-500.0,0.000165,2]
[325208629,1714588233993,-500.0,0.000165,2]
[325208630,1714588234005,-500.0,0.000165,2]
[325208631,1714588234019,-500.0,0.000165,2]
[325208632,1714588234036,-500.0,0.000165,2]
[325208633,1714588234048,-500.0,0.000165,2]
[325208634,1714588234058,-500.0,0.000165,2]
[325208635,1714588234067,-500.0,0.000165,2]
[325208636,1714588234077,-500.0,0.000165,2]
[325208637,1714588234087,-500.0,0.000165,2]
[325208638,1714588234096,-500.0,0.000165,2]
[325208639,1714588234105,-500.0,0.000165,2]
[325208640,1714588234115,-500.0,0.000165,2]
[325208641,1714588234125,-500.0,0.000165,2]
[325208642,1714588234134,-500.0,0.000165,2]
[325208643,1714588234143,-500.0,0.000165,2]
[325208644,1714588234152,-500.0,0.000165,2]
[325208645,1714588234162,-500.0,0.000165,2]
[325208646,1714588234171,-500.0,0.000165,2]
[325208647,1714588234180,-500.0,0.000165,2]
[325208648,1714588234558,-500.0,0.000165,2]
[325208649,1714588234581,-500.0,0.000165,2]
[325208650,1714588234613,-500.0,0.000165,2]
[325208651,1714588234624,-500.0,0.000165,2]
[325208652,1714588234634,-500.0,0.000165,2]
[325208653,1714588234643,-500.0,0.000165,2]
[325208654,1714588234652,-500.0,0.000165,2]
[325208655,1714588234661,-500.0,0.000165,2]
[325208656,1714588234670,-500.0,0.000165,2]
[325208657,1714588234680,-500.0,0.000165,2]
[325208658,1714588234690,-500.0,0.000165,2]
[325208659,1714588234701,-500.0,0.000165,2]
[325208660,1714588234710,-500.0,0.000165,2]
[325208661,1714588234719,-500.0,0.000165,2]
[325208662,1714588234729,-500.0,0.000165,2]
[325208663,1714588234738,-500.0,0.000165,2]
[325208664,1714588234747,-500.0,0.000165,2]
[325208665,1714588234756,-500.0,0.000165,2]
[325208666,1714588234765,-500.0,0.000165,2]
[325208667,1714588234775,-500.0,0.000165,2]
[325208668,1714588234784,-500.0,0.000165,2]
[325208669,1714588234794,-500.0,0.000165,2]
[325208670,1714588234804,-500.0,0.000165,2]
[325208671,1714588234815,-500.0,0.000165,2]
[325208672,1714588234824,-500.0,0.000165,2]
[325208673,1714588234835,-500.0,0.000165,2]
[325208674,1714588234846,-500.0,0.000165,2]
[325208675,1714588234855,-500.0,0.000165,2]
[325208676,1714588234864,-500.0,0.000165,2]
[325208677,1714588234875,-500.0,0.000165,2]
[325208678,1714588234884,-500.0,0.000165,2]
[325208679,1714588234893,-500.0,0.000165,2]
[325208680,1714588234903,-500.0,0.000165,2]
[325208681,1714588234912,-500.0,0.000165,2]
[325208682,1714588234922,-500.0,0.000165,2]
[325208683,1714588234931,-500.0,0.000165,2]
[325208684,1714588234940,-500.0,0.000165,2]
[325208685,1714588234950,-500.0,0.000165,2]
[325208686,1714588234959,-500.0,0.000165,2]
[325208687,1714588234968,-500.0,0.000165,2]
[325208688,1714588234977,-500.0,0.000165,2]
[325208689,1714588234986,-500.0,0.000165,2]
[325208690,1714588234995,-500.0,0.000165,2]
[325208691,1714588235004,-500.0,0.000165,2]
[325208692,1714588235014,-500.0,0.000165,2]
[325208693,1714588235026,-500.0,0.000165,2]
[325208694,1714588235035,-500.0,0.000165,2]
[325208695,1714588235043,-500.0,0.000165,2]
[325208696,1714588235052,-500.0,0.000165,2]
[325208697,1714588235061,-500.0,0.000165,2]
[325208698,1714588235070,-500.0,0.000165,2]
[325208699,1714588235079,-500.0,0.000165,2]
[325208700,1714588235089,-500.0,0.000165,2]
[325208701,1714588235098,-500.0,0.000165,2]
[325208702,1714588235107,-500.0,0.000165,2]
[325208703,1714588235117,-400.0,0.00016651,2]
[325208704,1714588235126,-265.30614412,0.00016783,2]
[325208705,1714588235135,-308.05,0.00016849,2]
[325208706,1714588235145,-200.0,0.00016864,2]
[325208707,1714588235155,-1000.0,0.00016864,2]
[325208708,1714588235164,-500.0,0.00016864,2]
[325208709,1714588235173,-200.0,0.00016864,2]
[325208710,1714588235183,-19590.34951232,0.00017,2]
[325208711,1714588235193,-265.30614412,0.00017007,2]
[325208712,1714588235203,-265.30614412,0.0001703,2]
[325208713,1714588235212,-153.4880445,0.00017134,2]
[325208714,1714588235222,-265.30614412,0.00017262,2]
[325208715,1714588235231,-167.0,0.00017295,2]
[325208716,1714588235240,-265.30614412,0.00017363,2]
[325208717,1714588235249,-345.716595,0.00017426,2]
[325208718,1714588235258,-150.645903,0.00017426,2]
[325208719,1714588235268,-185.526192,0.00017426,2]
[325208720,1714588235280,-466.233317,0.00017426,2]
[325208721,1714588235289,-179.2244514,0.00017634,2]
[325208722,1714588235298,-345.716595,0.00017643,2]
[325208723,1714588235308,-466.233317,0.00017643,2]
[325208724,1714588235317,-150.645903,0.00017716,2]
[325208725,1714588235327,-185.526192,0.00017716,2]
[325208726,1714588235336,-2280.23,0.00017728,2]
[325208727,1714588235345,-5800.0,0.0001774,2]
[325208728,1714588235355,-345.716595,0.00017861,2]
[325208729,1714588235365,-466.233317,0.00017861,2]
[325208730,1714588235376,-167.0,0.00017866,2]
[325208731,1714588235385,-17450.46996291,0.0001788,2]
[325208732,1714588235396,-6401.99646406,0.0001788,2]
[325208733,1714588235405,-800.0,0.00017973,2]
[325208734,1714588235415,-150.645903,0.00018006,2]
[325208735,1714588235424,-185.526192,0.00018006,2]
[325208736,1714588235434,-345.716595,0.00018079,2]
[325208737,1714588235444,-466.233317,0.00018079,2]
[325208738,1714588235453,-628.0,0.00018192,2]
[325208739,1714588235463,-800.0,0.00018192,2]
[325208740,1714588235473,-1000.0,0.00018199,2]
[325208741,1714588235483,-163.80524507,0.00018247,2]
[325208742,1714588235492,-17450.46996287,0.00018276,2]
[325208743,1714588235502,-345.716595,0.00018297,2]
[325208744,1714588235511,-466.233317,0.00018297,2]
[325208745,1714588235521,-150.645903,0.00018297,2]
[325208746,1714588235536,-185.526192,0.00018297,2]
[325208747,1714588235546,-2292.0,0.00018368,2]
[325208748,1714588235555,-6401.99646403,0.00018371,2]
[325208749,1714588235565,-167.0,0.00018437,2]
[325208750,1714588235575,-202.111,0.00018499,2]
[325208751,1714588235584,-639.878,0.00018499,2]
[325208752,1714588235594,-610.0,0.00018499,2]
[325208753,1714588235603,-437.0,0.00018499,2]
[325208754,1714588235613,-1476.0,0.00018499,2]
[325208755,1714588235622,-421.0,0.00018499,2]
[325208756,1714588235632,-3133.0,0.00018499,2]
[325208757,1714588235641,-2448.0,0.00018499,2]
[325208758,1714588235651,-150.0,0.00018499,2]
[325208759,1714588235660,-215.0,0.00018499,2]
[325208760,1714588235669,-444.0,0.00018499,2]
[325208761,1714588235679,-1643.0,0.00018499,2]
[325208762,1714588235693,-1139.0,0.00018499,2]
[325208763,1714588235703,-1057.0,0.00018499,2]
[325208764,1714588235712,-5737.0,0.00018499,2]
[325208765,1714588235722,-5899.0,0.00018499,2]
[325208766,1714588235733,-37744.0,0.00018499,2]
[325208767,1714588235742,-970.0,0.00018499,2]
[325208768,1714588235751,-2298.0,0.00018499,2]
[325208769,1714588235761,-1395.0,0.00018499,2]
[325208770,1714588235772,-462.0,0.00018499,2]
[325208771,1714588235784,-400.0,0.00018732,2]
[325208772,1714588235793,-265.30614412,0.00018913,2]
[325208773,1714588235803,-179.2244514,0.00018952,2]
[325208774,1714588235813,-1995.6221796,0.00018999,2]
[325208775,1714588235822,-206.58456979,0.00018999,2]
[325208776,1714588235832,-23369.934594,0.00019,5]
[325208777,1714588235842,-167.0,0.00019008,2]
[325208778,1714588235852,-4000.0,0.00019178,2]
[325208779,1714588235862,-167.0,0.00019579,2]
[325208780,1714588235871,-3078.68,0.00019846,15]
[325208781,1714588235881,-265.30614412,0.00019889,2]
[325208782,1714588235891,-200.0,0.00019903,2]
[325208783,1714588235900,-265.30614412,0.00019921,2]
[325208784,1714588235910,-265.30614412,0.00019934,2]
[325208785,1714588235919,-265.30614412,0.00019964,2]
[325208786,1714588235928,-173.10512213,0.0002,2]
[325208787,1714588235937,-158.94140926,0.0002,2]
[325208788,1714588235947,-358.06175097,0.0002,2]
[325208789,1714588235956,-195.58230746,0.0002,2]
[325208790,1714588235966,-1651.00918815,0.0002,2]
[325208791,1714588235976,-11947.93787147,0.0002,2]
[325208792,1714588235985,-357.45923016,0.0002,30]
[325208793,1714588235995,-1258.79778978,0.0002,2]
[325208794,1714588236007,-155.0,0.0002,2]
[325208795,1714588236015,-9930.64459111,0.0002,2]
[325208796,1714588236025,-1768.2555451,0.0002,2]
[325208797,1714588236041,-626.26256473,0.0002,2]
[325208798,1714588236051,-165.61593144,0.0002,2]
[325208799,1714588236061,-179.54169373,0.0002,2]
[325208800,1714588236072,-32124.25594276,0.0002,2]
[325208801,1714588236615,-5985.8999,0.0002,2]
[325208802,1714588236627,-5560.26,0.0002,2]
[325208803,1714588236639,-6386.82015795,0.0002,2]
[325208804,1714588236648,-12049.77891454,0.0002,3]
[325208805,1714588236658,-2552.35607494,0.0002,2]
[325208806,1714588236667,-190.66798989,0.0002,2]
[325208807,1714588236677,-232.2571624,0.0002,2]
[325208808,1714588236688,-821.54608542,0.0002,3]
[325208809,1714588236700,-259.04643198,0.0002,2]
[325208810,1714588236712,-3682.78777056,0.0002,2]
[325208811,1714588236722,-203.42564072,0.0002,2]
[325208812,1714588236732,-521.15382868,0.0002,2]
[325208813,1714588236741,-226.42030179,0.0002,2]
[325208814,1714588236750,-28378.93311484,0.0002,2]
[325208815,1714588236759,-178.28774648,0.0002,2]
[325208816,1714588236770,-1660.5733999,0.00020085,2]
[325208817,1714588236784,-4200.058421,0.00020085,2]
[325208818,1714588236794,-743.8272613,0.00020086,2]
[325208819,1714588236804,-820.981203,0.00020086,2]
[325208820,1714588236813,-898.1351447,0.00020086,2]
[325208821,1714588236822,-975.2890863,0.00020086,2]
[325208822,1714588236832,-1052.443028,0.00020086,2]
[325208823,1714588236841,-666.4551655,0.00020086,2]
[325208824,1714588236851,-639.3693942,0.00020086,2]
[325208825,1714588236861,-612.2836229,0.00020086,2]
[325208826,1714588236870,-585.1978516,0.00020086,2]
[325208827,1714588236879,-558.1120803,0.00020086,2]
[325208828,1714588236888,-1982.9309543,0.00020086,2]
[325208829,1714588236898,-1902.3415657,0.00020086,2]
[325208830,1714588236907,-1821.7521771,0.00020086,2]
[325208831,1714588236916,-1741.1627885,0.00020086,2]
[325208832,1714588236925,-1708.73495771,0.00020086,2]
[325208833,1714588236937,-1421.18809713,0.00020086,2]
[325208834,1714588236948,-608.17939029,0.00020086,2]
[325208835,1714588236960,-550.0,0.00020086,2]
[325208836,1714588237076,-727.28913777,0.00020086,2]
[325208837,1714588237085,-121.0244899,0.00020086,2]
[325208838,1714588237097,-260.79473481,0.00020086,2]
[325208839,1714588237109,-4429.73906769,0.00020086,2]
[325208840,1714588237118,-1584.53242569,0.00020086,2]
[325208841,1714588237130,-306.20467746,0.00020086,2]
[325208842,1714588237142,-2716.98789875,0.00020086,2]
[325208843,1714588237152,-33.01210125,0.00020086,2]
[325208849,1714588237499,-346.53616094,0.00020086,2]
[325208992,1714588239277,-214.23880024,0.00014028,2]
[325208993,1714588239294,-155.0,0.0001506,2]
[325208994,1714588239306,-1258.0,0.00015368,2]
[325208995,1714588239316,-4179.163,0.0001788,2]
[325208996,1714588239326,-1258.0,0.00018368,2]
[325208997,1714588239338,-190.332793,0.0001863,2]
[325208998,1714588239350,-190.332793,0.00019452,2]
[325208999,1714588239364,-4024.34344921,0.00020086,2]
[325209000,1714588239376,-1376.5410507,0.00020086,2]
[325209001,1714588239387,-1320.5962881,0.00020086,2]
[325209002,1714588239398,-1264.6515254,0.00020086,2]
[325209003,1714588239409,-1208.7067627,0.00020086,2]
[325209004,1714588239420,-1152.762,0.00020086,2]
[325209005,1714588239430,-2788.0665076,0.00020086,2]
[325209006,1714588239442,-2674.7551618,0.00020086,2]
[325209007,1714588239453,-2561.4438159,0.00020086,2]
[325209008,1714588239463,-2448.13247,0.00020086,2]
[325209010,1714588239475,-2334.8211241,0.00020086,2]
[325209012,1714588239486,-150.3,0.0002009,2]
[325209014,1714588239498,-150.3,0.0002009,2]
[325209016,1714588239508,-150.3,0.0002009,2]
[325209018,1714588239519,-150.3,0.0002009,2]
[325209020,1714588239528,-150.3,0.0002009,2]
[325209022,1714588239543,-150.3,0.0002009,2]
[325209024,1714588239552,-150.3,0.0002009,2]
[325209026,1714588239562,-150.3,0.0002009,2]
[325209028,1714588239572,-150.3,0.0002009,2]
[325209030,1714588239581,-150.3,0.0002009,2]
[325209033,1714588239591,-150.3,0.0002009,2]
[325209035,1714588239601,-150.3,0.0002009,2]
[325209036,1714588239610,-150.3,0.0002009,2]
[325209039,1714588239620,-150.3,0.0002009,2]
[325209041,1714588239629,-150.3,0.0002009,2]
[325209042,1714588239639,-150.3,0.0002009,2]
[325209044,1714588239648,-150.3,0.0002009,2]
[325209047,1714588239658,-150.3,0.0002009,2]
[325209049,1714588239668,-150.3,0.0002009,2]
[325209050,1714588239678,-150.3,0.0002009,2]
[325209053,1714588239692,-150.3,0.0002009,2]
[325209058,1714588239702,-150.3,0.0002009,2]
[325209061,1714588239711,-150.3,0.0002009,2]
[325209064,1714588239721,-150.3,0.0002009,2]
[325209066,1714588239731,-150.3,0.0002009,2]
[325209070,1714588239741,-150.3,0.0002009,2]
[325209073,1714588239750,-150.3,0.0002009,2]
[325209074,1714588239759,-150.3,0.0002009,2]
[325209077,1714588239768,-150.3,0.0002009,2]
[325209079,1714588239779,-150.3,0.0002009,2]
[325209082,1714588239792,-150.3,0.0002009,2]
[325209084,1714588239801,-150.3,0.0002009,2]
[325209086,1714588239812,-150.3,0.0002009,2]
[325209088,1714588239821,-150.3,0.0002009,2]
[325209090,1714588239832,-150.3,0.0002009,2]
[325209092,1714588239842,-150.3,0.0002009,2]
[325209094,1714588239852,-150.3,0.0002009,2]
[325209096,1714588239861,-150.3,0.0002009,2]
[325209098,1714588239871,-150.3,0.0002009,2]
[325209100,1714588239881,-150.3,0.0002009,2]
[325209102,1714588239891,-150.3,0.0002009,2]
[325209104,1714588239900,-150.3,0.0002009,2]
[325209106,1714588239910,-150.3,0.0002009,2]
[325209108,1714588239919,-150.3,0.0002009,2]
[325209110,1714588239929,-150.3,0.0002009,2]
[325209112,1714588239938,-150.3,0.0002009,2]
[325209114,1714588239948,-150.3,0.0002009,2]
[325209116,1714588239957,-150.3,0.0002009,2]
[325209118,1714588239966,-150.3,0.0002009,2]
[325209120,1714588239975,-150.3,0.0002009,2]
[325209122,1714588239984,-150.3,0.0002009,2]
[325209124,1714588239994,-150.3,0.0002009,2]
[325209126,1714588240003,-150.3,0.0002009,2]
[325209128,1714588240013,-150.3,0.0002009,2]
[325209130,1714588240022,-150.3,0.0002009,2]
[325209132,1714588240034,-150.3,0.0002009,2]
[325209134,1714588240043,-150.3,0.0002009,2]
[325209136,1714588240052,-150.3,0.0002009,2]
[325209138,1714588240061,-150.3,0.0002009,2]
[325209140,1714588240070,-150.3,0.0002009,2]
[325209142,1714588240079,-150.3,0.0002009,2]
[325209144,1714588240089,-150.3,0.0002009,2]
[325209146,1714588240098,-150.3,0.0002009,2]
[325209148,1714588240108,-150.3,0.0002009,2]
[325209150,1714588240117,-150.3,0.0002009,2]
[325209152,1714588240126,-150.3,0.0002009,2]
[325209154,1714588240136,-150.3,0.0002009,2]
[325209156,1714588240145,-150.3,0.0002009,2]
[325209158,1714588240154,-150.3,0.0002009,2]
[325209160,1714588240163,-150.3,0.0002009,2]
[325209162,1714588240173,-150.3,0.0002009,2]
[325209164,1714588240182,-150.3,0.0002009,2]
[325209166,1714588240191,-150.3,0.0002009,2]
[325209168,1714588240199,-150.3,0.0002009,2]
[325209170,1714588240208,-150.3,0.0002009,2]
[325209172,1714588240217,-21432.53655901,0.000201,2]
[325209175,1714588240230,-1158.63662,0.000201,2]
[325209177,1714588240242,-671.95731408,0.000201,2]
[325209179,1714588240254,-5572.08013985,0.000201,2]
[325209181,1714588240265,-298.9533,0.000201,2]
[325209312,1714588241524,-388.33639583,0.00015368,2]
[325209314,1714588241543,-153.66360417,0.00015368,2]
[325209316,1714588241551,-60938.50430052,0.000201,2]
[325209318,1714588241562,-412607.95081651,0.000201,2]
[325209339,1714588241751,-1486.4935766,0.000201,2]
[325209342,1714588241768,-12351.7,0.000201,2]
[325209344,1714588241780,-1811.22185798,0.000201,2]
[325209394,1714588242239,-1816.60009326,0.000201,2]
[325209397,1714588242251,-16489.33820191,0.000201,2]
[325209399,1714588242262,-438768.59654709,0.000201,2]
[325209406,1714588242315,-415.0266194,0.000201,2]
[325209408,1714588242327,-912.34002185,0.000201,2]
[325209447,1714588242589,-32935.320011,0.000201,2]
[325209450,1714588242601,-3042.22390319,0.000201,2]
[325209529,1714588243192,-1227.0,0.00015368,2]
[325209530,1714588243201,-514.0,0.00018296,2]
[325209532,1714588243211,-1227.0,0.00018368,2]
[325209534,1714588243220,-3414.7,0.000201,2]
[325209536,1714588243231,-325.22688809,0.000201,2]
[325209539,1714588243243,-1290.4131099,0.000201,2]
[325209541,1714588243254,-298.30500001,0.000201,2]
[325209543,1714588243266,-14457.68791233,0.000201,2]
[325209545,1714588243277,-23278.32657956,0.000201,2]
[325209550,1714588243311,-445057.14621907,0.000201,2]
[325209554,1714588243322,-20968.154045,0.000201,2]
[325209556,1714588243334,-475.93773419,0.000201,2]
[325209558,1714588243344,-10885.30238,0.000201,2]
[325209562,1714588243373,-1503.03897622,0.00017259,2]
[325209563,1714588243384,-3138.05679187,0.00017259,2]
[325209572,1714588244387,-302.09356369,0.00017259,2]
[325209580,1714588245642,-725.57999991,0.00017259,2]
[325209581,1714588245654,-762.146754,0.00017259,2]
[325209582,1714588245784,-6658.27565108,0.00017259,2]
[325209583,1714588245797,-1000.0,0.00019568,2]
[325209584,1714588245806,-418.94837555,0.000201,2]
[325209585,1714588245842,-1057.0,0.00016207,2]
[325209586,1714588245851,-8591.75713812,0.000201,2]
[325209587,1714588245862,-997.4085,0.000201,2]
[325209588,1714588245873,-886.9203,0.000201,2]
[325209589,1714588245914,-2734.71085841,0.000201,2]
[325209590,1714588245925,-909.18055416,0.000201,2]
[325209591,1714588245936,-682.36101224,0.000201,2]
[325209592,1714588245947,-1331.8735148,0.000201,2]
[325209593,1714588245959,-19840.83385625,0.000201,2]
[325209594,1714588245970,-5960.4558865,0.000201,2]
[325209603,1714589283171,150.0,0.00010993,2]
[325209604,1714589363656,1375.25304614,0.00010993,2]
[325209605,1714589377581,790.68189553,0.00010993,2]
[325209619,1714589431950,-161.65037328,0.00012084,2]
[325209620,1714589431960,-3083.19521143,0.00012084,2]
[325209621,1714589431969,-200.46583698,0.00012085,2]
[325209622,1714589431979,-1692.22086345,0.00012085,2]
[325209623,1714589431993,-875.59927975,0.00012085,2]
[325209624,1714589432007,-434.70958768,0.00012085,2]
[325209625,1714589432017,-527.47233212,0.00012086,2]
[325209626,1714589432029,-533.53669043,0.00012086,2]
[325209627,1714589432038,-320.48365581,0.00012087,2]
[325209628,1714589432047,-210.0,0.00012092,2]
[325209629,1714589432057,-834.67865744,0.00012935,2]
[325209630,1714589432070,-584.72,0.00012935,2]
[325209631,1714589432470,-573.76471456,0.00012935,2]
[325209632,1714589432548,-1748.77005859,0.00013,2]
[325209633,1714589432579,-1000.0,0.00013242,2]
[325209634,1714589432590,-150.0,0.00013292,3]
[325209635,1714589432599,-214.23880024,0.00014,2]
[325209636,1714589432608,-1460.0,0.00015,2]
[325209637,1714589432618,-617.71050029,0.00015,2]
[325209638,1714589432627,-1364.33,0.00015727,2]
[325209639,1714589432637,-3606.74,0.00015755,2]
[325209640,1714589432646,-2751.0,0.00015764,2]
[325209641,1714589432655,-200.0,0.00015764,2]
[325209642,1714589432665,-800.0,0.00015987,2]
[325209643,1714589432675,-73.52006071,0.00015989,2]
[325209644,1714589433020,-126.47993929,0.00015989,2]
[325209645,1714589433035,-250.0,0.00016012,2]
[325209646,1714589433046,-966.77,0.00016017,2]
[325209647,1714589433056,-500.0,0.00016017,2]
[325209648,1714589433066,-1000.0,0.00016021,2]
[325209649,1714589433076,-2565.56,0.0001611,15]
[325209650,1714589433086,-9467.73832695,0.00016207,2]
[325209651,1714589433096,-2298.0,0.00016209,2]
[325209652,1714589433106,-461.794,0.00016209,2]
[325209653,1714589433116,-970.0,0.00016209,2]
[325209654,1714589433126,-1395.0,0.00016209,2]
[325209655,1714589433135,-1227.0,0.00016209,2]
[325209656,1714589433145,-245.258,0.00016209,2]
[325209657,1714589433154,-1472.0,0.00016209,2]
[325209658,1714589433164,-3133.0,0.00016209,2]
[325209660,1714589433177,-383.814,0.00016209,2]
[325209663,1714589433188,-2448.0,0.00016209,2]
[325209664,1714589433197,-444.0,0.00016209,2]
[325209667,1714589433207,-1643.0,0.00016209,2]
[325209668,1714589433216,-211.0,0.00016209,2]
[325209670,1714589433227,-1139.0,0.00016209,2]
[325209672,1714589433236,-37744.0,0.00016209,2]
[325209674,1714589433246,-150.0,0.00016209,2]
[325209675,1714589433256,-5899.0,0.00016209,2]
[325209676,1714589433265,-150.0,0.00016209,2]
[325209677,1714589433276,-2292.0,0.00016209,2]